{"text_format":"1","workbook":"xlsx","n_sheets":3,"sheets":["Panoramica","Calcolo","Calcolo senza partner"],"not_rendered":{"charts":0,"images":6,"macros":1,"external_links":0,"defined_names":3,"comments":0,"pivot_tables":0},"unopened":[],"bounds":{"document_bytes":16777216,"sheet_cells":100000,"rows_first":2000,"rows_last":500,"rows_between":2000,"halvings":0,"cell_chars":16384,"cell_head_chars":4096},"cells_cut":0,"cells_raw":0,"read":"whole","date_system":"1900"}

{"sheet":"Panoramica","index":0,"n_rows":46,"n_cols":47,"rows_kept":46,"cut":false,"hidden":false,"merged":[[0,35,2,37],[18,0,18,6],[17,7,17,12],[18,7,18,12],[17,17,17,23],[18,17,18,23],[18,13,18,16],[9,19,9,21],[9,24,9,33],[12,22,12,23],[12,24,12,33],[8,0,8,6],[8,17,8,23],[8,24,8,33],[8,7,8,16],[10,0,10,6],[41,0,41,11],[12,0,12,6],[12,7,12,16],[14,0,14,33],[13,0,13,6],[13,7,13,16],[18,24,18,29],[15,0,15,6],[16,0,16,6],[15,7,15,12],[16,7,16,12],[15,17,15,23],[15,24,15,29],[28,30,28,33],[17,24,17,29],[16,24,16,29],[35,0,35,33],[31,30,31,33],[11,17,11,23],[11,24,11,33],[12,17,12,18],[12,19,12,21],[16,17,16,23],[22,0,22,33],[18,30,18,33],[15,13,15,16],[16,13,16,16],[17,13,17,16],[16,30,16,33],[17,0,17,6],[27,36,27,38],[10,7,10,16],[28,36,28,38],[9,7,9,16],[9,0,9,6],[9,17,9,18],[27,40,27,42],[28,40,28,42],[0,0,2,33],[26,30,26,33],[27,30,27,33],[25,30,25,33],[24,30,24,33],[10,17,10,33],[13,17,13,33],[6,0,6,33],[7,0,7,33],[11,0,11,6],[11,7,11,16],[9,22,9,23],[15,30,15,33],[17,30,17,33],[29,35,30,42],[30,45,30,47],[31,45,31,47],[35,44,35,51],[32,36,32,38],[32,40,32,42],[33,36,33,38],[33,40,33,42],[35,35,35,42]]}
["Contributo dei genitori",null,null,null,null,null,null,null,null,null,null,null,null,null,null,null,null,null,null,null,null,null,null,null,null,null,null,null,null,null,null,null,null,null,null,"!!! IMPORTANTE!!!"]
[]
[]
[]
[null,null,null,null,null,null,null,null,null,null,null,null,null,null,null,null,null,null,null,null,null,null,null,null,null,null,null,null,null,null,null,null,null,null,null,"- Per favore innanzitutto inserire i dati personali nel modulo. "]
[null,null,null,null,null,null,null,null,null,null,null,null,null,null,null,null,null,null,null,null,null,null,null,null,null,null,null,null,null,null,null,null,null,null,null,"- Se un genitore paga gli alimenti per il minore oggetto di misure di protezione dei minori stazionarie, questo genitore non deve versare il contributo dei genitori. Per questo genitore il calcolo del contributo dei genitori viene meno. È necessario allegare una prova relativa al pagamento degli alimenti."]
["Dati personali",null,null,null,null,null,null,null,null,null,null,null,null,null,null,null,null,null,null,null,null,null,null,null,null,null,null,null,null,null,null,null,null,null,null,"- Occorre apporre una crocetta accanto al genitore che paga gli alimenti. Il modulo di calcolo verrà quindi adeguato automaticamente. "]
["Genitori (detentore/i dell'autorità parentale)"]
["Cognome",null,null,null,null,null,null,null,null,null,null,null,null,null,null,null,null,"Nome",null,null,null,null,null,null,null,null,null,null,null,null,null,null,null,null,null,{"$f":"Panoramica!H9&\" \"&Panoramica!Y9","v":" "},null,null,"paga gli alimenti per il minore in questione"]
["Indirizzo",null,null,null,null,null,null,null,null,null,null,null,null,null,null,null,null,"NPA",null,null,null,null,"Luogo"]
["Stato civile"]
["Cognome",null,null,null,null,null,null,null,null,null,null,null,null,null,null,null,null,"Nome",null,null,null,null,null,null,null,null,null,null,null,null,null,null,null,null,null,{"$f":"Panoramica!H12&\" \"&Panoramica!Y12","v":" "},null,null,"paga gli alimenti per il minore in questione"]
["Indirizzo",null,null,null,null,null,null,null,null,null,null,null,null,null,null,null,null,"NPA",null,null,null,null,"Luogo"]
["Stato civile"]
["Minore/i",null,null,null,null,null,null,null,null,null,null,null,null,null,null,null,null,null,null,null,null,null,null,null,null,null,null,null,null,null,null,null,null,null,null,null,null,"Minimaler Elternbeitrag Alimente 1:",false,null,null,null,"Minimaler Elternbeitrag Alimente 2:",null,false]
["Cognome",null,null,null,null,null,null,"Nome",null,null,null,null,null,"Data di nascita",null,null,null,"Cognome",null,null,null,null,null,null,"Nome",null,null,null,null,null,"Data di nascita"]
[null,null,null,null,null,null,null,null,null,null,null,null,null,null,null,null,null,null,null,null,null,null,null,null,null,null,null,null,null,null,null,null,null,null,null,null,null,"Zusatzschritt (Eltern leben getrennt):",{"$f":"OR(SUM(Calcolo!AC21:AF21)<>0,SUM(Calcolo!AC36:AF36)<>0,SUM(Calcolo!AC37:AF37)<>0,SUM(Calcolo!BJ21:BM21)<>0,SUM(Calcolo!BJ36:BM36)<>0,SUM(Calcolo!BJ37:BM37)<>0)","v":false},null,null,null,"Zusatzschritt (Nur ein Elternteil):",null,{"$f":"AU33","v":false},{"$f":"OR(SUM(Calcolo!AC21:AF21)<>0,SUM(Calcolo!AC36:AF36)<>0,SUM(Calcolo!AC37:AF37)<>0)","v":false}]
[]
[]
[]
["Assistenza pubblica"]
["I genitori (detentore/i dell'autorità parentale) ricevono aiuto sociale economico:",null,null,null,null,null,null,null,null,null,null,null,null,null,null,null,null,null,null,null,null,null,null,null,null,null,null,null,null,null,null,null,null,null,null,"- Nel caso di genitori che non vivono nella stessa economia domestica un solo genitore viene sostenuto dall'assistenza pubblica, si deve rispondere \"no\"."]
["(Se si risponde \"sì\", non è possibile calcolare il contributo dei genitori. Fa stato il contributo dei genitori minimo pari a fr. 10.00. Al modulo va allegata una copia della decisione relativa all'aiuto sociale.)"]
[]
["Contributo dei genitori"]
["Reddito mensile",null,null,null,null,null,null,null,null,null,null,null,null,null,null,null,null,null,null,null,null,null,null,null,null,null,null,null,"fr.",null,{"$f":"IF(SUM(Calcolo!AC30-Calcolo!AC17,Calcolo!BJ30-Calcolo!BJ17)>620,ROUND(SUM(Calcolo!AC30, Calcolo!BJ30),0),\"min. cdg\")","v":"min. cdg"}]
["Impegni mensili correnti",null,null,null,null,null,null,null,null,null,null,null,null,null,null,null,null,null,null,null,null,null,null,null,null,null,null,null,"fr.",null,{"$f":"IF(SUM(Calcolo!AC30-Calcolo!AC17, Calcolo!BJ30-Calcolo!BJ17)>620,ROUND(SUM(Calcolo!AC17, Calcolo!BJ17),0),\"min. cdg\")","v":"min. cdg"},null,null,{"$f":"SUM(#REF!)","v":{"$error":"#REF!"}},null,"Raccomandazione per la suddivisione proporzionale del contributo dei genitori calcolato"]
["Differenza",null,null,null,null,null,null,null,null,null,null,null,null,null,null,null,null,null,null,null,null,null,null,null,null,null,null,null,"fr.",null,{"$f":"IF(AE26=\"min. cdg\",\"min. cdg\",AE26-AE27)","v":"min. cdg"},null,null,null,null,"Genitore:",{"$f":"Panoramica!H9&\" \"&Panoramica!Y9","v":" "},null,null,"Genitore:",{"$f":"Panoramica!H12&\" \"&Panoramica!Y12","v":" "}]
[{"$f":"IF(AND(OR(AM15=TRUE,AS15=TRUE),AE29>5),\"Contributo dei genitori massimo possibile al giorno (budget COSAS)\",IF(OR(AM15=TRUE,AS15=TRUE),\"Contributo dei genitori minimo al giorno\",IF(AE29>10,\"Contributo dei genitori massimo possibile al giorno (budget COSAS)\",\"Contributo dei genitori minimo al giorno\")))","v":"Contributo dei genitori minimo al giorno"},null,null,null,null,null,null,null,null,null,null,null,null,null,null,null,null,null,null,null,null,null,null,null,null,null,null,null,"fr.",null,{"$f":"IF(SUM(Calcolo!AC30-Calcolo!AC17, Calcolo!BJ30-Calcolo!BJ17)>620, ROUND(SUM(Calcolo!AC30-Calcolo!AC17, Calcolo!BJ30-Calcolo!BJ17)/2/30.5,0),10)","v":10},null,null,null,null,"fr.",{"$f":"IF(AND((Calcolo!AC30-Calcolo!AC17)>=305,(Calcolo!BJ30-Calcolo!BJ17)>=305),ROUND(MROUND((Calcolo!AC30-Calcolo!AC17)/2/30.5,0.5),0),IF(AND((Calcolo!AC30-Calcolo!AC17)>=305,(Calcolo!BJ30-Calcolo!BJ17)<305),IF((ROUND(MROUND((Calcolo!BJ30-Calcolo!BJ17)/2/30.5,0.5),0)+ROUND(MROUND((Calcolo!AC30-Calcolo!AC17)/2/30.5,0.5),0))<=10,5,(ROUND(MROUND((Calcolo!BJ30-Calcolo!BJ17)/2/30.5,0.5),0)+ROUND(MROUND((Calcolo!AC30-Calcolo!AC17)/2/30.5,0.5),0))-5),5))","v":5},null,null,"fr.",{"$f":"IF(AND((Calcolo!AC30-Calcolo!AC17)>=305,(Calcolo!BJ30-Calcolo!BJ17)>=305),ROUND(MROUND((Calcolo!BJ30-Calcolo!BJ17)/2/30.5,0.5),0),IF(AND((Calcolo!BJ30-Calcolo!BJ17)>=305,(Calcolo!AC30-Calcolo!AC17)<305),IF((ROUND(MROUND((Calcolo!BJ30-Calcolo!BJ17)/2/30.5,0.5),0)+ROUND(MROUND((Calcolo!AC30-Calcolo!AC17)/2/30.5,0.5),0))<=10,5,(ROUND(MROUND((Calcolo!BJ30-Calcolo!BJ17)/2/30.5,0.5),0)+ROUND(MROUND((Calcolo!AC30-Calcolo!AC17)/2/30.5,0.5),0))-5),5))","v":5}]
["(il contributo dei genitori minimo al giorno ammonta a fr. 10.-)",null,null,null,null,null,null,null,null,null,null,null,null,null,null,null,null,null,null,null,null,null,null,null,null,null,null,null,null,null,null,null,null,null,null,"- Caso particolare: se un genitore paga gli alimenti per il minore oggetto di misure di protezione dei minori stazionarie, fa stato un contributo dei genitori minimo pari a fr. 5.00.\n",null,null,null,null,null,null,null,null,"Contributo die genitori calcolato senza considerare il reddito e la sostanza partner"]
[null,null,null,null,null,null,null,null,null,null,null,null,null,null,null,null,null,null,null,null,null,null,null,null,null,null,null,null,null,null,null,null,null,null,null,null,null,null,null,null,null,null,null,null,"Genitore:",{"$f":"Panoramica!P9&\" \"&Panoramica!AG9","v":" "}]
["Contributo ai genitori stabilito al giorno",null,null,null,null,null,null,null,null,null,null,null,null,null,null,null,null,null,null,null,null,null,null,null,null,null,null,null,"fr.",null,0,null,null,null,null,"Raccomandazione senza considerare il reddito e la sostanza partner",null,null,null,null,null,null,null,null,"fr.",{"$f":"IF(AL42=\"i.O.\",AE29,IF((AL37+AL42)/30.5>10,ROUND((AL37+AL42)/30.5,0),10))","v":10}]
[null,null,null,null,null,null,null,null,null,null,null,null,null,null,null,null,null,null,null,null,null,null,null,null,null,null,null,null,null,null,null,null,null,null,null,"Genitore:",{"$f":"Panoramica!H9&\" \"&Panoramica!Y9","v":" "},null,null,"Genitore:",{"$f":"Panoramica!H12&\" \"&Panoramica!Y12","v":" "},null,null,null,null,"CheckBox3 aktiviert:",false]
[null,null,null,null,null,null,null,null,null,null,null,null,null,null,null,null,null,null,null,null,null,null,null,null,null,null,null,null,null,null,null,null,null,null,null,"fr.",{"$f":"IF(AL43=\"i.O.\",AK29,IF((AL37+AL42)/30.5>5,ROUND((AL37+AL42)/30.5,0),5))","v":5},null,null,"fr.",{"$f":"IF(AP43=\"i.O.\",AO29,IF((AP37+AP42)/30.5>5,ROUND((AP37+AP42)/30.5,0),5))","v":5}]
["Motivazione:"]
[null,null,null,null,null,null,null,null,null,null,null,null,null,null,null,null,null,null,null,null,null,null,null,null,null,null,null,null,null,null,null,null,null,null,null,"- In caso di matrimonio, unione domestica registrata o concubinati stabili, le entrate del/la nuovo/a partner devono essere considerate nel calcolo del budget COSAS ampliato. Un obbligo di assistenza del/la partner nei confronti del figlio non biologico sussiste solo se il figlio è stato adottato. Se il figlio non viene adottato, il contributo dei genitori può essere richiesto fino a un importo massimo pari alle entrate del genitore biologico (cfr. cartella \"Calcolo senza partner\"). Se il genitore biologico non ha entrate, è dovuto l'importo minimo. Al momento del conteggio con l'Ufficio cantonale del servizio sociale occorre inoltrare la cartella \"Calcolo senza partner\".",null,null,null,null,null,null,null,null,"- In caso di matrimonio, unione domestica registrata o concubinati stabili, le entrate del/la nuovo/a partner devono essere considerate nel calcolo del budget COSAS ampliato. Un obbligo di assistenza del/la partner nei confronti del figlio non biologico sussiste solo se il figlio è stato adottato. Se il figlio non viene adottato, il contributo dei genitori può essere richiesto fino a un importo massimo pari alle entrate del genitore biologico (cfr. cartella \"Calcolo senza partner\"). Se il genitore biologico non ha entrate, è dovuto l'importo minimo. Al momento del conteggio con l'Ufficio cantonale del servizio sociale occorre inoltrare la cartella \"Calcolo senza partner\"."]
[null,null,null,null,null,null,null,null,null,null,null,null,null,null,null,null,null,null,null,null,null,null,null,null,null,null,null,null,null,null,null,null,null,null,null,null,"Summe Einkommen Elternteil 1:",{"$f":"SUM('Calcolo senza partner'!AC13:AF13)-SUM('Calcolo senza partner'!AC10:AF10)","v":0},null,null,"Summe Einkommen Elternteil 2:",{"$f":"SUM('Calcolo senza partner'!BJ13:BM13)-SUM('Calcolo senza partner'!BJ10:BM10)","v":0}]
[null,null,null,null,null,null,null,null,null,null,null,null,null,null,null,null,null,null,null,null,null,null,null,null,null,null,null,null,null,null,null,null,null,null,null,null,"Total Vermögen Elternteil 1:",{"$f":"SUM('Calcolo senza partner'!AC19:AF19)","v":0},null,null,"Total Vermögen Elternteil 2:",{"$f":"SUM('Calcolo senza partner'!BJ19:BM19)","v":0}]
["Luogo / data",null,null,null,null,null,null,null,null,null,null,null,null,null,null,null,null,"Firma del/la funzionario/a incaricato/a competente",null,null,null,null,null,null,null,null,null,null,null,null,null,null,null,null,null,null,"Total Schulden Elternteil 1:",{"$f":"SUM('Calcolo senza partner'!AC23:AF23)","v":0},null,null,"Total Schulden Elternteil 2:",{"$f":"SUM('Calcolo senza partner'!BJ23:BM23)","v":0}]
[null,null,null,null,null,null,null,null,null,null,null,null,null,null,null,null,null,null,null,null,null,null,null,null,null,null,null,null,null,null,null,null,null,null,null,null,"Vermögensfreibetrag Elternteil 1:",{"$f":"SUM('Calcolo senza partner'!AC27:AF27)","v":4000},null,null,"Vermögensfreibetrag Elternteil 2:",{"$f":"SUM('Calcolo senza partner'!BJ27:BM27)","v":4000}]
[null,null,null,null,null,null,null,null,null,null,null,null,null,null,null,null,null,null,null,null,null,null,null,null,null,null,null,null,null,null,null,null,null,null,null,null,"Reinvermögen Elternteil 1:",{"$f":"SUM('Calcolo senza partner'!AC28:AF28)","v":-4000},null,null,"Reinvermögen Elternteil 2:",{"$f":"SUM('Calcolo senza partner'!BJ28:BM28)","v":-4000}]
[null,null,null,null,null,null,null,null,null,null,null,null,null,null,null,null,null,null,null,null,null,null,null,null,null,null,null,null,null,null,null,null,null,null,null,null,"Vermögensverzehr Elternteil 1:",{"$f":"IF(SUM('Calcolo senza partner'!AC10:AF10)<0,0,SUM('Calcolo senza partner'!AC10:AF10))","v":0},null,null,"Vermögensverzehr Elternteil 2:",{"$f":"IF(SUM('Calcolo senza partner'!BJ10:BM10)<0,0,SUM('Calcolo senza partner'!BJ10:BM10))","v":0}]
[null,null,null,null,null,null,null,null,null,null,null,null,null,null,null,null,null,null,null,null,null,null,null,null,null,null,null,null,null,null,null,null,null,null,null,null,"Prüfung Elternteil 1:",{"$f":"IF(AK29*30.5>(AL37+AL42),\"Zusatzschritt\",\"i.O.\")","v":"Zusatzschritt"},null,null,"Prüfung Elternteil 2:",{"$f":"IF(AO29*30.5>(AP37+AP42),\"Zusatzschritt\",\"i.O.\")","v":"Zusatzschritt"}]
[]
["Osservazione"]
["Il contributo dei genitori viene calcolato mensilmente con precisione al giorno. Nel caso del contributo dei genitori minimo il contributo massimo ammonta a 31 giorni da 10 franchi ovvero a 310 franchi al mese."]

{"sheet":"Calcolo","index":1,"n_rows":52,"n_cols":68,"rows_kept":52,"cut":false,"hidden":false,"merged":[[28,1,28,23],[28,34,28,56],[15,1,15,23],[15,34,15,56],[46,61,46,64],[32,61,32,64],[33,61,33,64],[34,61,34,64],[35,61,35,64],[24,61,24,64],[25,61,25,64],[26,61,26,64],[27,61,27,64],[28,61,28,64],[19,61,19,64],[20,61,20,64],[47,61,47,64],[49,61,49,64],[51,37,51,47],[3,1,3,31],[3,34,3,64],[40,61,40,64],[41,61,41,64],[42,34,42,44],[42,61,42,64],[44,61,44,64],[36,61,36,64],[37,34,37,44],[37,61,37,64],[38,61,38,64],[39,61,39,64],[29,61,29,64],[21,61,21,64],[22,61,22,64],[23,61,23,64],[13,61,13,64],[14,61,14,64],[15,61,15,64],[16,61,16,64],[18,61,18,64],[9,61,9,64],[10,34,10,56],[10,61,10,64],[11,61,11,64],[12,61,12,64],[0,34,2,64],[5,61,5,64],[6,61,6,64],[7,61,7,64],[8,61,8,64],[27,28,27,31],[10,1,10,23],[33,28,33,31],[49,28,49,31],[39,28,39,31],[29,28,29,31],[40,28,40,31],[35,28,35,31],[36,28,36,31],[34,28,34,31],[42,1,42,11],[37,1,37,11],[15,28,15,31],[28,28,28,31],[21,28,21,31],[22,28,22,31],[9,28,9,31],[7,28,7,31],[26,28,26,31],[25,28,25,31],[16,28,16,31],[10,28,10,31],[11,28,11,31],[12,28,12,31],[19,28,19,31],[24,28,24,31],[13,28,13,31],[14,28,14,31],[51,4,51,14],[0,1,2,31],[46,28,46,31],[42,28,42,31],[47,28,47,31],[32,28,32,31],[38,28,38,31],[44,28,44,31],[41,28,41,31],[5,28,5,31],[18,28,18,31],[37,28,37,31],[20,28,20,31],[23,28,23,31],[6,28,6,31],[8,28,8,31]]}
[null,"Calcolo contributo dei genitori",null,null,null,null,null,null,null,null,null,null,null,null,null,null,null,null,null,null,null,null,null,null,null,null,null,null,null,null,null,null,null,null,"Calcolo contributo dei genitori"]
[]
[]
[null,{"$f":"Panoramica!H9&\" \"&Panoramica!Y9","v":" "},null,null,null,null,null,null,null,null,null,null,null,null,null,null,null,null,null,null,null,null,null,null,null,null,null,null,null,null,null,null,null,null,{"$f":"Panoramica!H12&\" \"&Panoramica!Y12","v":" "}]
[null,null,null,null,null,null,null,null,null,null,null,null,null,null,null,null,null,null,null,null,null,null,null,null,null,null,null,null,null,null,null,null,null,null,null,null,null,null,null,null,null,null,null,null,null,null,null,null,null,null,null,null,null,null,null,null,null,null,null,null,null,null,null,null,null,null,null,"Commenti"]
[null,"Impegni mensili correnti (budget ampliato COSAS)",null,null,null,null,null,null,null,null,null,null,null,null,null,null,null,null,null,null,null,null,null,null,null,null,null,null,"Importo (fr.)",null,null,null," ",null,"Impegni mensili correnti (budget ampliato COSAS)",null,null,null,null,null,null,null,null,null,null,null,null,null,null,null,null,null,null,null,null,null,null,null,null,null,null,"Importo (fr.)"]
[null,"Forfait per il mantenimento (secondo COSAS)",null,null,null,null,null,null,null,null,null,null,null,null,null,null,null,null,null,null,null,null,null,null,null,null,null,null,0,null,null,null,null,null,"Forfait per il mantenimento (secondo COSAS)",null,null,null,null,null,null,null,null,null,null,null,null,null,null,null,null,null,null,null,null,null,null,null,null,null,null,0,null,null,null,null,null,"- I minori oggetto di misure di protezione dei minori stazionarie non vengono considerati."]
[null,"Spese di alloggio (pigione o interessi ipotecari)",null,null,null,null,null,null,null,null,null,null,null,null,null,null,null,null,null,null,null,null,null,null,null,null,null,null,0,null,null,null,null,null,"Spese di alloggio (pigione o interessi ipotecari)",null,null,null,null,null,null,null,null,null,null,null,null,null,null,null,null,null,null,null,null,null,null,null,null,null,null,0]
[null,"Assistenza medica di base",null,null,null,null,null,null,null,null,null,null,null,null,null,null,null,null,null,null,null,null,null,null,null,null,null,null,0,null,null,null,null,null,"Assistenza medica di base",null,null,null,null,null,null,null,null,null,null,null,null,null,null,null,null,null,null,null,null,null,null,null,null,null,null,0,null,null,null,null,null,"- Premi nonché 1/12 della franchigia stabilita contrattualmente e dell'aliquota percentuale annua massima dell'unità di assistenza. I minori oggetto di misure di protezione dei minori stazionarie non vengono considerati."]
[null,"Prestazioni circostanziali",null,null,null,null,null,null,null,null,null,null,null,null,null,null,null,null,null,null,null,null,null,null,null,null,null,null,0,null,null,null,null,null,"Prestazioni circostanziali",null,null,null,null,null,null,null,null,null,null,null,null,null,null,null,null,null,null,null,null,null,null,null,null,null,null,0,null,null,null,null,null,"- Prestazioni circostanziali dimostrate e quantificabili. Queste includono tra l'altro i premi dell'assicurazione mobilia domestica e dell'assicurazione di responsabilità civile privata (1/12 del premio annuale) o le spese per cure dentarie (1/12). "]
[null,"Parti non computabili del reddito e assegni integrativi",null,null,null,null,null,null,null,null,null,null,null,null,null,null,null,null,null,null,null,null,null,null,null,null,null,null,0,null,null,null,null,null,"Parti non computabili del reddito e assegni integrativi",null,null,null,null,null,null,null,null,null,null,null,null,null,null,null,null,null,null,null,null,null,null,null,null,null,null,0,null,null,null,null,null,"- Importi che verrebbero concessi alla/alle persona/e assoggettata/e all'obbligo in caso di sostegno. L'importo non può superare i fr. 650.00 (art. 7 DELCAss)."]
[null,"Versamenti degli alimenti (purché versati)",null,null,null,null,null,null,null,null,null,null,null,null,null,null,null,null,null,null,null,null,null,null,null,null,null,null,0,null,null,null,null,null,"Versamenti degli alimenti (purché versati)",null,null,null,null,null,null,null,null,null,null,null,null,null,null,null,null,null,null,null,null,null,null,null,null,null,null,0,null,null,null,null,null,"- Versamenti degli alimenti e delle spese di formazione legalmente dovuti ed effettivamente versati per persone che non vivono nella stessa economia domestica."]
[null,"Imposte ",null,null,null,null,null,null,null,null,null,null,null,null,null,null,null,null,null,null,null,null,null,null,null,null,null,null,0,null,null,null,null,null,"Imposte ",null,null,null,null,null,null,null,null,null,null,null,null,null,null,null,null,null,null,null,null,null,null,null,null,null,null,0,null,null,null,null,null,"- 1/12 delle imposte annuali correnti."]
[null,"Estinzione di debiti",null,null,null,null,null,null,null,null,null,null,null,null,null,null,null,null,null,null,null,null,null,null,null,null,null,null,0,null,null,null,null,null,"Estinzione di debiti",null,null,null,null,null,null,null,null,null,null,null,null,null,null,null,null,null,null,null,null,null,null,null,null,null,null,0,null,null,null,null,null,"- Debiti e ammortamenti di crediti, se giustificati dall'acquisto di beni indispensabili o a copertura dei bisogni primari."]
[null,"Pignoramento",null,null,null,null,null,null,null,null,null,null,null,null,null,null,null,null,null,null,null,null,null,null,null,null,null,null,0,null,null,null,null,null,"Pignoramento",null,null,null,null,null,null,null,null,null,null,null,null,null,null,null,null,null,null,null,null,null,null,null,null,null,null,0,null,null,null,null,null,"- Pignoramento corrente del reddito o di valori patrimoniali, se non si riesce a ottenere un nuovo calcolo o fino a quando si riesce a ottenere un nuovo calcolo. "]
[null,"Altro (prego inserire all'occorrenza)",null,null,null,null,null,null,null,null,null,null,null,null,null,null,null,null,null,null,null,null,null,null,null,null,null,null,0,null,null,null,null,null,"Altro (prego inserire all'occorrenza)",null,null,null,null,null,null,null,null,null,null,null,null,null,null,null,null,null,null,null,null,null,null,null,null,null,null,0]
[null,"Totale degli impegni mensili correnti",null,null,null,null,null,null,null,null,null,null,null,null,null,null,null,null,null,null,null,null,null,null,null,null,null,null,{"$f":"SUM(AC7:AF16)","v":0},null,null,null,null,null,"Totale degli impegni mensili correnti",null,null,null,null,null,null,null,null,null,null,null,null,null,null,null,null,null,null,null,null,null,null,null,null,null,null,{"$f":"SUM(BJ7:BM16)","v":0}]
[]
[null,"Reddito mensile",null,null,null,null,null,null,null,null,null,null,null,null,null,null,null,null,null,null,null,null,null,null,null,null,null,null,"Importo (fr.)",null,null,null,null,null,"Reddito mensile",null,null,null,null,null,null,null,null,null,null,null,null,null,null,null,null,null,null,null,null,null,null,null,null,null,null,"Importo (fr.)"]
[null,"Reddito genitore (incl. tredicesima mensilità, rendite, indennità giornaliere, ecc.)",null,null,null,null,null,null,null,null,null,null,null,null,null,null,null,null,null,null,null,null,null,null,null,null,null,null,0,null,null,null,null,null,"Reddito genitore (incl. tredicesima mensilità, rendite, indennità giornaliere, ecc.)",null,null,null,null,null,null,null,null,null,null,null,null,null,null,null,null,null,null,null,null,null,null,null,null,null,null,0]
[null,"Tutti i redditi  partner (incl. tredicesima mensilità, rendite, interessi, ecc.)",null,null,null,null,null,null,null,null,null,null,null,null,null,null,null,null,null,null,null,null,null,null,null,null,null,null,0,null,null,null,null,null,"Tutti i redditi  partner (incl. tredicesima mensilità, rendite, interessi, ecc.)",null,null,null,null,null,null,null,null,null,null,null,null,null,null,null,null,null,null,null,null,null,null,null,null,null,null,0,null,null,null,null,null,"- Tutte le entrate del/la partner (salario, rendite, interessi maturati, contributo di accudimento, redditi immobiliari, borse di studio, ecc.)"]
[null,"Entrate dei minori (assegni per figli/di formazione, rendite AI, borse di studio, ecc.)",null,null,null,null,null,null,null,null,null,null,null,null,null,null,null,null,null,null,null,null,null,null,null,null,null,null,0,null,null,null,null,null,"Entrate dei minori (assegni per figli/di formazione, rendite AI, borse di studio, ecc.)",null,null,null,null,null,null,null,null,null,null,null,null,null,null,null,null,null,null,null,null,null,null,null,null,null,null,0,null,null,null,null,null,"- incl. rendite di assicurazioni sociali (ad es. AI, AVS, LPP, IPG).  I minori oggetto di misure di protezione dei minori stazionarie non vengono considerati."]
[null,"Mantenimento in contanti dei minori",null,null,null,null,null,null,null,null,null,null,null,null,null,null,null,null,null,null,null,null,null,null,null,null,null,null,0,null,null,null,null,null,"Mantenimento in contanti dei minori",null,null,null,null,null,null,null,null,null,null,null,null,null,null,null,null,null,null,null,null,null,null,null,null,null,null,0,null,null,null,null,null,"- Conformemente all'accordo di mantenimento/alla sentenza giudiziaria. I minori oggetto di misure di protezione dei minori stazionarie non vengono considerati. Se il mantenimento non è stato suddiviso tra contributo di accudimento e mantenimento in contanti, le prestazioni di mantenimento vanno riportate qui."]
[null,"Contributo di accudimento genitore",null,null,null,null,null,null,null,null,null,null,null,null,null,null,null,null,null,null,null,null,null,null,null,null,null,null,0,null,null,null,null,null,"Contributo di accudimento genitore",null,null,null,null,null,null,null,null,null,null,null,null,null,null,null,null,null,null,null,null,null,null,null,null,null,null,0,null,null,null,null,null,"- Conformemente all'accordo di mantenimento/alla sentenza giudiziaria. Il contributo di accudimento di minori oggetto di misure stazionarie non viene considerato."]
[null,"Interessi maturati e ricavi da locazioni genitore",null,null,null,null,null,null,null,null,null,null,null,null,null,null,null,null,null,null,null,null,null,null,null,null,null,null,0,null,null,null,null,null,"Interessi maturati e ricavi da locazioni genitore",null,null,null,null,null,null,null,null,null,null,null,null,null,null,null,null,null,null,null,null,null,null,null,null,null,null,0]
[null,"Imputazione della sostanza secondo il calcolo sottostante (viene riportato)",null,null,null,null,null,null,null,null,null,null,null,null,null,null,null,null,null,null,null,null,null,null,null,null,null,null,{"$f":"AC50","v":0},null,null,null,null,null,"Imputazione della sostanza secondo il calcolo sottostante (viene riportato)",null,null,null,null,null,null,null,null,null,null,null,null,null,null,null,null,null,null,null,null,null,null,null,null,null,null,{"$f":"BJ50","v":0},null,null,null,null,null,"- 10% della sostanza netta, se la sostanza netta supera l'importo esente; calcolato su base mensile (riporto dal calcolo di cui sotto)."]
[null,"Riduzione individuale dei premi (tutti)",null,null,null,null,null,null,null,null,null,null,null,null,null,null,null,null,null,null,null,null,null,null,null,null,null,null,0,null,null,null,null,null,"Riduzione individuale dei premi (tutti)",null,null,null,null,null,null,null,null,null,null,null,null,null,null,null,null,null,null,null,null,null,null,null,null,null,null,0,null,null,null,null,null,"- per l'unità di assistenza. I minori oggetto di misure di protezione dei minori stazionarie non vengono considerati."]
[null,"Borse di studio (genitore)",null,null,null,null,null,null,null,null,null,null,null,null,null,null,null,null,null,null,null,null,null,null,null,null,null,null,0,null,null,null,null,null,"Borse di studio (genitore)",null,null,null,null,null,null,null,null,null,null,null,null,null,null,null,null,null,null,null,null,null,null,null,null,null,null,0,null,null,null,null,null,"- escl. borsa di studio per figli in misure di protezione dei minori stazionarie."]
[null,"Altro (prego inserire all'occorrenza, solo genitore)",null,null,null,null,null,null,null,null,null,null,null,null,null,null,null,null,null,null,null,null,null,null,null,null,null,null,0,null,null,null,null,null,"Altro (prego inserire all'occorrenza, solo genitore)",null,null,null,null,null,null,null,null,null,null,null,null,null,null,null,null,null,null,null,null,null,null,null,null,null,null,0]
[null,"Totale dei redditi",null,null,null,null,null,null,null,null,null,null,null,null,null,null,null,null,null,null,null,null,null,null,null,null,null,null,{"$f":"SUM(AC20:AF29)","v":0},null,null,null,null,null,"Totale dei redditi",null,null,null,null,null,null,null,null,null,null,null,null,null,null,null,null,null,null,null,null,null,null,null,null,null,null,{"$f":"SUM(BJ20:BM29)","v":0}]
[]
[null,"Calcolo dell'imputazione della sostanza",null,null,null,null,null,null,null,null,null,null,null,null,null,null,null,null,null,null,null,null,null,null,null,null,null,null,null,null,null,null,null,null,"Calcolo dell'imputazione della sostanza",null,null,null,null,null,null,null,null,null,null,null,null,null,null,null,null,null,null,null,null,null,null,null,null,null,null,null,null,null,null,null,null,"- La sostanza del minore non viene considerata."]
[null,"Sostanza",null,null,null,null,null,null,null,null,null,null,null,null,null,null,null,null,null,null,null,null,null,null,null,null,null,null,"Importo (fr.)",null,null,null,null,null,"Sostanza",null,null,null,null,null,null,null,null,null,null,null,null,null,null,null,null,null,null,null,null,null,null,null,null,null,null,"Importo (fr.)"]
[null,"Sostanza genitore (senza fondi e immobili)",null,null,null,null,null,null,null,null,null,null,null,null,null,null,null,null,null,null,null,null,null,null,null,null,null,null,0,null,null,null,null,null,"Sostanza genitore (senza fondi e immobili)",null,null,null,null,null,null,null,null,null,null,null,null,null,null,null,null,null,null,null,null,null,null,null,null,null,null,0,null,null,null,null,null,"- Secondo l'ultima tassazione fiscale. Nella sostanza rientrano ad es. averi a risparmio, titoli, contanti, veicoli a motore, quota di eredità indivisa, ecc."]
[null,"Fondi e immobili genitore (valore fiscale)",null,null,null,null,null,null,null,null,null,null,null,null,null,null,null,null,null,null,null,null,null,null,null,null,null,null,0,null,null,null,null,null,"Fondi e immobili genitore (valore fiscale)",null,null,null,null,null,null,null,null,null,null,null,null,null,null,null,null,null,null,null,null,null,null,null,null,null,null,0]
[null,"Sostanza partner (senza fondi e immobili)",null,null,null,null,null,null,null,null,null,null,null,null,null,null,null,null,null,null,null,null,null,null,null,null,null,null,0,null,null,null,null,null,"Sostanza partner (senza fondi e immobili)",null,null,null,null,null,null,null,null,null,null,null,null,null,null,null,null,null,null,null,null,null,null,null,null,null,null,0,null,null,null,null,null,"- Secondo l'ultima tassazione fiscale. Nella sostanza rientrano ad es. averi a risparmio, titoli, contanti, veicoli a motore, quota di eredità indivisa, ecc."]
[null,"Fondi e immobili partner (valore fiscale)",null,null,null,null,null,null,null,null,null,null,null,null,null,null,null,null,null,null,null,null,null,null,null,null,null,null,0,null,null,null,null,null,"Fondi e immobili partner (valore fiscale)",null,null,null,null,null,null,null,null,null,null,null,null,null,null,null,null,null,null,null,null,null,null,null,null,null,null,0]
[null,"Totale della sostanza",null,null,null,null,null,null,null,null,null,null,null,null,null,null,null,null,null,null,null,null,null,null,null,null,null,null,{"$f":"SUM(AC34:AF37)","v":0},null,null,null,null,null,"Totale della sostanza",null,null,null,null,null,null,null,null,null,null,null,null,null,null,null,null,null,null,null,null,null,null,null,null,null,null,{"$f":"SUM(BJ34:BM37)","v":0}]
[]
[null,"Debiti",null,null,null,null,null,null,null,null,null,null,null,null,null,null,null,null,null,null,null,null,null,null,null,null,null,null,"Importo (fr.)",null,null,null,null,null,"Debiti",null,null,null,null,null,null,null,null,null,null,null,null,null,null,null,null,null,null,null,null,null,null,null,null,null,null,"Importo (fr.)"]
[null,"Debiti genitore",null,null,null,null,null,null,null,null,null,null,null,null,null,null,null,null,null,null,null,null,null,null,null,null,null,null,0,null,null,null,null,null,"Debiti genitore",null,null,null,null,null,null,null,null,null,null,null,null,null,null,null,null,null,null,null,null,null,null,null,null,null,null,0,null,null,null,null,null,"- Nei debiti rientrano ad es. debiti ipotecari, debiti da mutui / debiti da carte di credito, ecc."]
[null,"Debiti partner",null,null,null,null,null,null,null,null,null,null,null,null,null,null,null,null,null,null,null,null,null,null,null,null,null,null,0,null,null,null,null,null,"Debiti partner",null,null,null,null,null,null,null,null,null,null,null,null,null,null,null,null,null,null,null,null,null,null,null,null,null,null,0,null,null,null,null,null,"- Nei debiti rientrano ad es. debiti ipotecari, debiti da mutui / debiti da carte di credito, ecc."]
[null,"Totale dei debiti",null,null,null,null,null,null,null,null,null,null,null,null,null,null,null,null,null,null,null,null,null,null,null,null,null,null,{"$f":"SUM(AC41:AF42)","v":0},null,null,null,null,null,"Totale dei debiti",null,null,null,null,null,null,null,null,null,null,null,null,null,null,null,null,null,null,null,null,null,null,null,null,null,null,{"$f":"SUM(BJ41:BM42)","v":0}]
[]
[null,"Sostanza netta prima della deduzione della quota di sostanza lasciata a libera disposizione",null,null,null,null,null,null,null,null,null,null,null,null,null,null,null,null,null,null,null,null,null,null,null,null,null,null,{"$f":"AC38-AC43","v":0},null,null,null,null,null,"Sostanza netta prima della deduzione della quota di sostanza lasciata a libera disposizione",null,null,null,null,null,null,null,null,null,null,null,null,null,null,null,null,null,null,null,null,null,null,null,null,null,null,{"$f":"BJ38-BJ43","v":0}]
[]
[null,"quota di sostanza lasciata a libera disposizione",null,null,null,null,null,null,null,null,null,null,null,null,null,null,null,null,null,null,null,null,null,null,null,null,null,null,0,null,null,null,null,null,"quota di sostanza lasciata a libera disposizione",null,null,null,null,null,null,null,null,null,null,null,null,null,null,null,null,null,null,null,null,null,null,null,null,null,null,0,null,null,null,null,null,"- Persona singola fr. 4'000.–; coniugi/concubinato fr. 8'000.–; per ogni figlio fr. 2'000.–, tuttavia al massimo fr. 10'000.– per l'intera economia domestica. Il mobilio e gli effetti personali non devono essere considerati nel calcolo della sostanza (art. 5 DELCAss)."]
[null,"Sostanza netta ",null,null,null,null,null,null,null,null,null,null,null,null,null,null,null,null,null,null,null,null,null,null,null,null,null,null,{"$f":"(AC38-AC43-AC47)","v":0},null,null,null,null,null,"Sostanza netta ",null,null,null,null,null,null,null,null,null,null,null,null,null,null,null,null,null,null,null,null,null,null,null,null,null,null,{"$f":"(BJ38-BJ43-BJ47)","v":0}]
[]
[null,"Imputazione della sostanza computabile (al mese)",null,null,null,null,null,null,null,null,null,null,null,null,null,null,null,null,null,null,null,null,null,null,null,null,null,null,{"$f":"IF(ROUND(AC48/10/12,0)<0,0,ROUND(AC48/10/12,0))","v":0},null,null,{"$f":"AC48/10/12","v":0},null,null,"Imputazione della sostanza computabile (al mese)",null,null,null,null,null,null,null,null,null,null,null,null,null,null,null,null,null,null,null,null,null,null,null,null,null,null,{"$f":"IF(ROUND(BJ48/10/12,0)<0,0,ROUND(BJ48/10/12,0))","v":0},null,null,{"$f":"BJ48/10/12","v":0},null,null,"- 10% della sostanza netta, se la sostanza netta supera l'importo esente; calcolato su base mensile."]
[]
[null,"Data:",null,null,{"$f":"NOW()","v":"2023-06-21T13:24:54.180"},null,null,null,null,null,null,null,null,null,null,null,null,null,null,null,null,null,null,null,null,null,null,null,null,null,null,null,null,null,"Data:",null,null,{"$f":"NOW()","v":"2023-06-21T13:24:54.180"}]

{"sheet":"Calcolo senza partner","index":2,"n_rows":36,"n_cols":65,"rows_kept":36,"cut":false,"hidden":true,"merged":[[0,1,2,31],[0,34,2,64],[3,1,3,31],[3,34,3,64],[5,28,5,31],[5,61,5,64],[6,28,6,31],[6,61,6,64],[7,28,7,31],[7,61,7,64],[8,28,8,31],[8,61,8,64],[9,28,9,31],[9,61,9,64],[10,28,10,31],[10,61,10,64],[11,1,11,23],[11,28,11,31],[11,34,11,56],[11,61,11,64],[12,28,12,31],[12,61,12,64],[15,28,15,31],[15,61,15,64],[16,28,16,31],[16,61,16,64],[17,28,17,31],[17,61,17,64],[18,1,18,11],[18,28,18,31],[18,34,18,44],[18,61,18,64],[19,28,19,31],[19,61,19,64],[20,28,20,31],[20,61,20,64],[21,28,21,31],[21,61,21,64],[22,1,22,11],[22,28,22,31],[22,34,22,44],[22,61,22,64],[24,28,24,31],[24,61,24,64],[26,28,26,31],[26,61,26,64],[27,28,27,31],[27,61,27,64],[29,28,29,31],[29,61,29,64],[32,28,32,31],[32,61,32,64],[33,28,33,31],[33,61,33,64],[35,4,35,14],[35,37,35,47]]}
[null,"Calcolo contributo dei genitori senza reddito e sostanza partner",null,null,null,null,null,null,null,null,null,null,null,null,null,null,null,null,null,null,null,null,null,null,null,null,null,null,null,null,null,null,null,null,"Calcolo contributo dei genitori senza reddito e sostanza partner"]
[]
[]
[null,{"$f":"Panoramica!H9&\" \"&Panoramica!Y9","v":" "},null,null,null,null,null,null,null,null,null,null,null,null,null,null,null,null,null,null,null,null,null,null,null,null,null,null,null,null,null,null,null,null,{"$f":"Panoramica!H12&\" \"&Panoramica!Y12","v":" "}]
[]
[null,"Reddito mensile genitore",null,null,null,null,null,null,null,null,null,null,null,null,null,null,null,null,null,null,null,null,null,null,null,null,null,null,"Importo (fr.)",null,null,null,null,null,"Reddito mensile genitore",null,null,null,null,null,null,null,null,null,null,null,null,null,null,null,null,null,null,null,null,null,null,null,null,null,null,"Importo (fr.)"]
[null,"Reddito genitore (incl. tredicesima mensilità, rendite, indennità giornaliere, ecc.)",null,null,null,null,null,null,null,null,null,null,null,null,null,null,null,null,null,null,null,null,null,null,null,null,null,null,{"$f":"Calcolo!AC20:AF20","v":0},null,null,null,null,null,"Reddito genitore (incl. tredicesima mensilità, rendite, indennità giornaliere, ecc.)",null,null,null,null,null,null,null,null,null,null,null,null,null,null,null,null,null,null,null,null,null,null,null,null,null,null,{"$f":"Calcolo!BJ20:BM20","v":0}]
[null,"Contributo di accudimento genitore",null,null,null,null,null,null,null,null,null,null,null,null,null,null,null,null,null,null,null,null,null,null,null,null,null,null,{"$f":"Calcolo!AC24:AF24","v":0},null,null,null,null,null,"Contributo di accudimento genitore",null,null,null,null,null,null,null,null,null,null,null,null,null,null,null,null,null,null,null,null,null,null,null,null,null,null,{"$f":"Calcolo!BJ24:BM24","v":0}]
[null,"Interessi maturati e ricavi da locazioni genitore",null,null,null,null,null,null,null,null,null,null,null,null,null,null,null,null,null,null,null,null,null,null,null,null,null,null,{"$f":"Calcolo!AC25:AF25","v":0},null,null,null,null,null,"Interessi maturati e ricavi da locazioni genitore",null,null,null,null,null,null,null,null,null,null,null,null,null,null,null,null,null,null,null,null,null,null,null,null,null,null,{"$f":"Calcolo!BJ25:BM25","v":0}]
[null,"Imputazione della sostanza secondo il calcolo sottostante (viene riportato)",null,null,null,null,null,null,null,null,null,null,null,null,null,null,null,null,null,null,null,null,null,null,null,null,null,null,{"$f":"AC30","v":0},null,null,null,null,null,"Imputazione della sostanza secondo il calcolo sottostante (viene riportato)",null,null,null,null,null,null,null,null,null,null,null,null,null,null,null,null,null,null,null,null,null,null,null,null,null,null,{"$f":"BJ30","v":0}]
[null,"Borse di studio (genitore)",null,null,null,null,null,null,null,null,null,null,null,null,null,null,null,null,null,null,null,null,null,null,null,null,null,null,{"$f":"Calcolo!AC28:AF28","v":0},null,null,null,null,null,"Borse di studio (genitore)",null,null,null,null,null,null,null,null,null,null,null,null,null,null,null,null,null,null,null,null,null,null,null,null,null,null,{"$f":"Calcolo!BJ28:BM28","v":0}]
[null,{"$f":"Calcolo!B29","v":"Altro (prego inserire all'occorrenza, solo genitore)"},null,null,null,null,null,null,null,null,null,null,null,null,null,null,null,null,null,null,null,null,null,null,null,null,null,null,{"$f":"Calcolo!AC29:AF29","v":0},null,null,null,null,null,{"$f":"Calcolo!AI29","v":"Altro (prego inserire all'occorrenza, solo genitore)"},null,null,null,null,null,null,null,null,null,null,null,null,null,null,null,null,null,null,null,null,null,null,null,null,null,null,{"$f":"Calcolo!BJ29:BM29","v":0}]
[null,"Totale dei redditi genitore",null,null,null,null,null,null,null,null,null,null,null,null,null,null,null,null,null,null,null,null,null,null,null,null,null,null,{"$f":"SUM(AC7:AF12)","v":0},null,null,null,null,null,"Totale dei redditi genitore",null,null,null,null,null,null,null,null,null,null,null,null,null,null,null,null,null,null,null,null,null,null,null,null,null,null,{"$f":"SUM(BJ7:BM12)","v":0}]
[]
[null,"Calcolo dell'imputazione della sostanza",null,null,null,null,null,null,null,null,null,null,null,null,null,null,null,null,null,null,null,null,null,null,null,null,null,null,null,null,null,null,null,null,"Calcolo dell'imputazione della sostanza"]
[null,"Sostanza",null,null,null,null,null,null,null,null,null,null,null,null,null,null,null,null,null,null,null,null,null,null,null,null,null,null,"Importo (fr.)",null,null,null,null,null,"Sostanza",null,null,null,null,null,null,null,null,null,null,null,null,null,null,null,null,null,null,null,null,null,null,null,null,null,null,"Importo (fr.)"]
[null,"Sostanza genitore (senza fondi e immobili)",null,null,null,null,null,null,null,null,null,null,null,null,null,null,null,null,null,null,null,null,null,null,null,null,null,null,{"$f":"Calcolo!AC34:AF34","v":0},null,null,null,null,null,"Sostanza genitore (senza fondi e immobili)",null,null,null,null,null,null,null,null,null,null,null,null,null,null,null,null,null,null,null,null,null,null,null,null,null,null,{"$f":"Calcolo!BJ34:BM34","v":0}]
[null,"Fondi e immobili genitore (valore fiscale)",null,null,null,null,null,null,null,null,null,null,null,null,null,null,null,null,null,null,null,null,null,null,null,null,null,null,{"$f":"Calcolo!AC35:AF35","v":0},null,null,null,null,null,"Fondi e immobili genitore (valore fiscale)",null,null,null,null,null,null,null,null,null,null,null,null,null,null,null,null,null,null,null,null,null,null,null,null,null,null,{"$f":"Calcolo!BJ35:BM35","v":0}]
[null,"Totale della sostanza",null,null,null,null,null,null,null,null,null,null,null,null,null,null,null,null,null,null,null,null,null,null,null,null,null,null,{"$f":"SUM(AC17:AF18)","v":0},null,null,null,null,null,"Totale della sostanza",null,null,null,null,null,null,null,null,null,null,null,null,null,null,null,null,null,null,null,null,null,null,null,null,null,null,{"$f":"SUM(BJ17:BM18)","v":0}]
[]
[null,"Debiti",null,null,null,null,null,null,null,null,null,null,null,null,null,null,null,null,null,null,null,null,null,null,null,null,null,null,"Importo (fr.)",null,null,null,null,null,"Debiti",null,null,null,null,null,null,null,null,null,null,null,null,null,null,null,null,null,null,null,null,null,null,null,null,null,null,"Importo (fr.)"]
[null,"Debiti genitore",null,null,null,null,null,null,null,null,null,null,null,null,null,null,null,null,null,null,null,null,null,null,null,null,null,null,{"$f":"Calcolo!AC41:AF41","v":0},null,null,null,null,null,"Debiti genitore",null,null,null,null,null,null,null,null,null,null,null,null,null,null,null,null,null,null,null,null,null,null,null,null,null,null,{"$f":"Calcolo!BJ41:BM41","v":0}]
[null,"Totale dei debiti",null,null,null,null,null,null,null,null,null,null,null,null,null,null,null,null,null,null,null,null,null,null,null,null,null,null,{"$f":"SUM(AC22:AF22)","v":0},null,null,null,null,null,"Totale dei debiti",null,null,null,null,null,null,null,null,null,null,null,null,null,null,null,null,null,null,null,null,null,null,null,null,null,null,{"$f":"SUM(BJ22:BM22)","v":0}]
[]
[null,"Sostanza netta prima della deduzione della quota di sostanza lasciata a libera disposizione",null,null,null,null,null,null,null,null,null,null,null,null,null,null,null,null,null,null,null,null,null,null,null,null,null,null,{"$f":"AC19-AC23","v":0},null,null,null,null,null,"Sostanza netta prima della deduzione della quota di sostanza lasciata a libera disposizione",null,null,null,null,null,null,null,null,null,null,null,null,null,null,null,null,null,null,null,null,null,null,null,null,null,null,{"$f":"BJ19-BJ23","v":0}]
[]
[null,"quota di sostanza lasciata a libera disposizione",null,null,null,null,null,null,null,null,null,null,null,null,null,null,null,null,null,null,null,null,null,null,null,null,null,null,4000,null,null,null,null,null,"quota di sostanza lasciata a libera disposizione",null,null,null,null,null,null,null,null,null,null,null,null,null,null,null,null,null,null,null,null,null,null,null,null,null,null,4000]
[null,"Sostanza netta ",null,null,null,null,null,null,null,null,null,null,null,null,null,null,null,null,null,null,null,null,null,null,null,null,null,null,{"$f":"(AC19-AC23-AC27)","v":-4000},null,null,null,null,null,"Sostanza netta ",null,null,null,null,null,null,null,null,null,null,null,null,null,null,null,null,null,null,null,null,null,null,null,null,null,null,{"$f":"(BJ19-BJ23-BJ27)","v":-4000}]
[]
[null,"Imputazione della sostanza computabile (al mese)",null,null,null,null,null,null,null,null,null,null,null,null,null,null,null,null,null,null,null,null,null,null,null,null,null,null,{"$f":"IF(ROUND(AC28/10/12,0)<0,0,ROUND(AC28/10/12,0))","v":0},null,null,{"$f":"AC28/10/12","v":-33.333333333333336},null,null,"Imputazione della sostanza computabile (al mese)",null,null,null,null,null,null,null,null,null,null,null,null,null,null,null,null,null,null,null,null,null,null,null,null,null,null,{"$f":"IF(ROUND(BJ28/10/12,0)<0,0,ROUND(BJ28/10/12,0))","v":0},null,null,{"$f":"BJ28/10/12","v":-33.333333333333336}]
[]
[]
[null,"Raccomandazione",null,null,null,null,null,null,null,null,null,null,null,null,null,null,null,null,null,null,null,null,null,null,null,null,null,null,"Importo (fr.)",null,null,null,null,null,"Raccomandazione",null,null,null,null,null,null,null,null,null,null,null,null,null,null,null,null,null,null,null,null,null,null,null,null,null,null,"Importo (fr.)"]
[null,"Contributo die genitori calcolato (senza reddito e sostanza partner)",null,null,null,null,null,null,null,null,null,null,null,null,null,null,null,null,null,null,null,null,null,null,null,null,null,null,{"$f":"IF(AND(Panoramica!AS17=TRUE,Panoramica!AT17=TRUE),Panoramica!AT32,Panoramica!AK34)","v":5},null,null,null,null,null,"Contributo die genitori calcolato (senza reddito e sostanza partner)",null,null,null,null,null,null,null,null,null,null,null,null,null,null,null,null,null,null,null,null,null,null,null,null,null,null,{"$f":"Panoramica!AO34","v":5}]
[]
[null,"Data:",null,null,{"$f":"NOW()","v":"2023-06-21T13:24:54.180"},null,null,null,null,null,null,null,null,null,null,null,null,null,null,null,null,null,null,null,null,null,null,null,null,null,null,null,null,null,"Data:",null,null,{"$f":"NOW()","v":"2023-06-21T13:24:54.180"}]